[Event "FIDE World Rapid-ch Open 2018"]
[White "Mchedlishvili, Mikheil"]
[Black "Steinberg, Nitzan"]
[Site "St. Petersburg"]
[Round "2.40"]
[Annotator "ChessBase"]
[Result "0-1"]
[Date "2018.12.26"]
[WhiteElo "2610"]
[BlackElo "2532"]
[PlyCount "98"]
[TimeControl "900+10"]

1. d4 {[%emt 0:0:0]} d5 {[%emt 0:0:0]} 2. c4 {[%emt 0:0:0]} c6 {[%emt 0:0:0]} 3. Nf3 {[%emt 0:0:7]} Nf6 {[%emt 0:0:0]} 4. g3 {[%emt 0:0:24]} dxc4 {[%emt 0:0:7]} 5. Bg2 {[%emt 0:0:8]} g6 {[%emt 0:0:2]} 6. Ne5 {[%emt 0:2:0]
} Be6 {[%emt 0:1:29]} 7. 0-0 {[%emt 0:1:36]} Bg7 {[%emt 0:0:0]} 8. Na3 {[%emt 0:0:59]} Ng4 {[%emt 0:2:56]} 9. Naxc4 {[%emt 0:1:29]} Nxe5 {[%emt 0:0:25]} 10. Nxe5 {[%emt 0:0:3]} Nd7 {[%emt 0:0:25]} 11. Nf3 {[%emt 0:1:14]
} Bd5 {[%emt 0:0:1]} 12. Qc2 {[%emt 0:0:53]} Bxf3 {[%emt 0:0:0]} 13. Bxf3 {[%emt 0:0:3]} Bxd4 {[%emt 0:0:3]} 14. Bh6 {[%emt 0:1:24]} Qb6 {[%emt 0:0:7]} 15. Rad1 {[%emt 0:2:36]} Ne5 {[%emt 0:0:17]} 16. Qe4 {[%emt 0:1:13]
} 0-0-0 {[%emt 0:0:35]} 17. Kg2 {[%emt 0:1:39]} f5 {[%emt 0:0:0]} 18. Qh4 {[%emt 0:0:6]} Rd7 {[%emt 0:1:41]} 19. b3 {[%emt 0:0:38]} Nxf3 {[%emt 0:1:19]} 20. exf3 {[%emt 0:0:1]} Qc5 {[%emt 0:0:21]} 21. Rc1 {[%emt 0:0:46]
} Qd5 {[%emt 0:0:4]} 22. Rfd1 {[%emt 0:0:15]} e5 {[%emt 0:0:0]} 23. Rc4 {[%emt 0:0:10]} c5 {[%emt 0:0:52]} 24. Be3 {[%emt 0:0:12]} b6 {[%emt 0:1:1]
} 25. Bxd4 {[%emt 0:0:37]} exd4 {[%emt 0:0:2]} 26. Rc2 {[%emt 0:0:36]
} Kb7 {[%emt 0:0:12]} 27. Qf4 {[%emt 0:0:4]} Re8 {[%emt 0:0:0]} 28. Qd2 {[%emt 0:0:14]} d3 {[%emt 0:0:49]} 29. Rc3 {[%emt 0:0:0]} Re2 {[%emt 0:0:13]} 30. Qf4 {[%emt 0:0:19]} Qd4 {[%emt 0:0:19]} 31. Qxd4 {[%emt 0:0:8]
} Rxd4 {[%emt 0:0:2]} 32. a4 {[%emt 0:0:13]} d2 {[%emt 0:0:0]} 33. Kf1 {[%emt 0:0:1]} Re7 {[%emt 0:0:6]} 34. h4 {[%emt 0:0:13]} Kc6 {[%emt 0:0:9]} 35. Rc2 {[%emt 0:0:16]} Red7 {[%emt 0:0:16]} 36. Ke2 {[%emt 0:0:1]
} Re7+ {[%emt 0:0:4]} 37. Kf1 {[%emt 0:0:1]} Red7 {[%emt 0:0:0]} 38. Ke2 {[%emt 0:0:1]} a6 {[%emt 0:0:21]} 39. Rc3 {[%emt 0:0:12]} b5 {[%emt 0:0:13]} 40. axb5+ {[%emt 0:0:2]} axb5 {[%emt 0:0:1]} 41. Re3 {[%emt 0:0:5]
} c4 {[%emt 0:0:11]} 42. bxc4 {[%emt 0:0:13]} bxc4 {[%emt 0:0:0]} 43. f4 {[%emt 0:0:39]} Kc5 {[%emt 0:0:8]} 44. h5 {[%emt 0:0:11]} gxh5 {[%emt 0:0:25]} 45. Re5+ {[%emt 0:0:1]} Kb4 {[%emt 0:0:6]} 46. Rb1+ {[%emt 0:0:20]
} Kc3 {[%emt 0:0:5]} 47. Kd1 {[%emt 0:0:1]} Re4 {[%emt 0:0:0]} 48. Ra1 {[%emt 0:0:22]} Kd3 {[%emt 0:0:19]} 49. Raa5 {[%emt 0:0:11]} c3 {[%emt 0:0:14]} 0-1

[Event "FIDE World Rapid-ch Open 2018"]
[White "Ovchinnikov, Vsevolod"]
[Black "Alekseenko, Kirill"]
[Site "St. Petersburg"]
[Round "2.41"]
[Annotator "ChessBase"]
[Result "0-1"]
[Date "2018.12.26"]
[WhiteElo "2329"]
[BlackElo "2638"]
[PlyCount "60"]
[TimeControl "900+10"]

1. Nf3 {[%emt 0:0:0]} c5 {[%emt 0:0:1]} 2. c4 {[%emt 0:0:0]} Nc6 {[%emt 0:0:6]
} 3. g3 {[%emt 0:0:1]} g6 {[%emt 0:0:8]} 4. Bg2 {[%emt 0:0:0]} Bg7 {[%emt 0:0:3]} 5. Nc3 {[%emt 0:0:13]} d6 {[%emt 0:0:13]} 6. d3 {[%emt 0:0:18]
} Bf5 {[%emt 0:0:16]} 7. Bd2 {[%emt 0:1:15]} Nf6 {[%emt 0:0:0]} 8. a3 {[%emt 0:1:25]} 0-0 {[%emt 0:0:5]} 9. b4 {[%emt 0:0:46]} cxb4 {[%emt 0:0:15]
} 10. axb4 {[%emt 0:0:2]} Nxb4 {[%emt 0:0:24]} 11. Nd4 {[%emt 0:1:46]
} Bg4 {[%emt 0:1:0]} 12. Qb1 {[%emt 0:2:41]} a5 {[%emt 0:0:0]} 13. Ncb5 {[%emt 0:1:49]} d5 {[%emt 0:1:17]} 14. Bxb4 {[%emt 0:3:20]} axb4 {[%emt 0:0:3]} 15. Rxa8 {[%emt 0:0:2]} Qxa8 {[%emt 0:0:2]} 16. 0-0 {[%emt 0:0:19]
} e5 {[%emt 0:0:25]} 17. Nf3 {[%emt 0:0:26]} e4 {[%emt 0:1:11]
} 18. Nfd4 {[%emt 0:1:14]} Qa4 {[%emt 0:0:9]} 19. dxe4 {[%emt 0:1:57]} dxc4 {[%emt 0:0:18]} 20. e5 {[%emt 0:0:2]} Nd7 {[%emt 0:0:17]} 21. Qe4 {[%emt 0:0:0]} Nxe5 {[%emt 0:0:26]} 22. f4 {[%emt 0:0:1]} Nc6 {[%emt 0:0:34]} 23. Nxc6 {[%emt 0:0:22]} bxc6 {[%emt 0:0:2]} 24. Nd6 {[%emt 0:0:10]} c3 {[%emt 0:0:28]
} 25. f5 {[%emt 0:0:2]} gxf5 {[%emt 0:0:27]} 26. Nxf5 {[%emt 0:0:1]
} Bxf5 {[%emt 0:0:5]} 27. Qxf5 {[%emt 0:0:2]} Qb5 {[%emt 0:0:0]} 28. Qd7 {[%emt 0:0:40]} Qc5+ {[%emt 0:0:16]} 29. Kh1 {[%emt 0:0:4]} c2 {[%emt 0:0:5]} 30. Qd2 {[%emt 0:0:3]} Bb2 {[%emt 0:0:31]} 0-1

[Event "FIDE World Rapid-ch Open 2018"]
[White "Tregubov, Pavel V."]
[Black "Le, Quang Liem"]
[Site "St. Petersburg"]
[Round "2.44"]
[Annotator "ChessBase"]
[Result "1/2-1/2"]
[Date "2018.12.26"]
[WhiteElo "2592"]
[BlackElo "2714"]
[PlyCount "99"]
[TimeControl "900+10"]

1. d4 {[%emt 0:0:0]} Nf6 {[%emt 0:0:0]} 2. c4 {[%emt 0:0:0]} e6 {[%emt 0:0:0]} 3. Nc3 {[%emt 0:0:0]} Bb4 {[%emt 0:0:0]} 4. e3 {[%emt 0:0:0]} 0-0 {[%emt 0:0:0]} 5. Nge2 {[%emt 0:0:1]} Re8 {[%emt 0:0:1]} 6. a3 {[%emt 0:0:0]} Bf8 {[%emt 0:0:3]} 7. d5 {[%emt 0:0:2]} d6 {[%emt 0:0:9]} 8. Ng3 {[%emt 0:0:23]} a5 {[%emt 0:0:12]} 9. Be2 {[%emt 0:0:31]} Na6 {[%emt 0:0:0]} 10. 0-0 {[%emt 0:0:33]} Nc5 {[%emt 0:0:3]} 11. b3 {[%emt 0:0:2]} c6 {[%emt 0:0:50]
} 12. e4 {[%emt 0:1:32]} exd5 {[%emt 0:0:15]} 13. exd5 {[%emt 0:0:1]
} cxd5 {[%emt 0:0:46]} 14. cxd5 {[%emt 0:0:9]} Bd7 {[%emt 0:0:0]} 15. Be3 {[%emt 0:0:38]} Rc8 {[%emt 0:0:5]} 16. Bd4 {[%emt 0:1:28]} g6 {[%emt 0:0:21]} 17. Bf3 {[%emt 0:0:38]} Bg7 {[%emt 0:1:32]} 18. b4 {[%emt 0:0:48]
} Na6 {[%emt 0:0:6]} 19. Qb3 {[%emt 0:0:31]} h5 {[%emt 0:0:0]} 20. h3 {[%emt 0:0:50]} h4 {[%emt 0:0:32]} 21. Nge2 {[%emt 0:0:3]} axb4 {[%emt 0:1:6]} 22. axb4 {[%emt 0:0:2]} Bf5 {[%emt 0:0:3]} 23. Rfd1 {[%emt 0:1:31]
} Qd7 {[%emt 0:3:12]} 24. Rac1 {[%emt 0:4:7]} Bxh3 {[%emt 0:0:0]} 25. Bxf6 {[%emt 0:1:2]} Bxf6 {[%emt 0:0:7]} 26. gxh3 {[%emt 0:0:0]} Qxh3 {[%emt 0:0:22]} 27. Bg2 {[%emt 0:0:17]} Qf5 {[%emt 0:0:33]} 28. Ne4 {[%emt 0:0:45]} Rxc1 {[%emt 0:0:7]} 29. Nxf6+ {[%emt 0:0:30]} Qxf6 {[%emt 0:0:2]
} 30. Nxc1 {[%emt 0:0:3]} Re5 {[%emt 0:0:13]} 31. Qc3 {[%emt 0:1:32]
} Qg5 {[%emt 0:0:39]} 32. Nd3 {[%emt 0:0:29]} Re8 {[%emt 0:0:0]} 33. Re1 {[%emt 0:0:24]} Rxe1+ {[%emt 0:0:9]} 34. Nxe1 {[%emt 0:0:2]} Qg4 {[%emt 0:0:13]} 35. Nc2 {[%emt 0:0:13]} h3 {[%emt 0:0:3]} 36. Ne3 {[%emt 0:0:9]
} Qxb4 {[%emt 0:0:12]} 37. Qxb4 {[%emt 0:0:22]} Nxb4 {[%emt 0:0:0]} 38. Bxh3 {[%emt 0:0:1]} f5 {[%emt 0:0:5]} 39. Bg2 {[%emt 0:0:37]} b5 {[%emt 0:0:7]} 40. Bf1 {[%emt 0:0:23]} f4 {[%emt 0:0:1]} 41. Ng4 {[%emt 0:0:0]
} Nxd5 {[%emt 0:0:3]} 42. Bxb5 {[%emt 0:0:1]} Kg7 {[%emt 0:0:0]} 43. Kg2 {[%emt 0:0:2]} g5 {[%emt 0:0:8]} 44. Kf3 {[%emt 0:0:2]} Nc3 {[%emt 0:0:1]} 45. Bd7 {[%emt 0:0:6]} Kg6 {[%emt 0:0:8]} 46. Bc8 {[%emt 0:0:8]
} Kh5 {[%emt 0:0:21]} 47. Nf6+ {[%emt 0:0:8]} Kh4 {[%emt 0:0:0]} 48. Ne4 {[%emt 0:0:17]} g4+ {[%emt 0:0:19]} 49. Bxg4 {[%emt 0:0:56]} Nxe4 {[%emt 0:0:2]} 50. Bf5 {[%emt 0:0:4]} 1/2-1/2

[Event "FIDE World Rapid-ch Open 2018"]
[White "Mamedov, Rauf"]
[Black "Shinkevich, Vitaly"]
[Site "St. Petersburg"]
[Round "2.45"]
[Annotator "ChessBase"]
[Result "1-0"]
[Date "2018.12.26"]
[WhiteElo "2703"]
[BlackElo "2439"]
[PlyCount "67"]
[TimeControl "900+10"]

1. e4 {[%emt 0:0:0]} e5 {[%emt 0:0:0]} 2. Nf3 {[%emt 0:0:1]} Nc6 {[%emt 0:0:0]
} 3. Bc4 {[%emt 0:0:2]} Bc5 {[%emt 0:0:0]} 4. c3 {[%emt 0:0:0]} Nf6 {[%emt 0:0:0]} 5. d3 {[%emt 0:0:1]} a6 {[%emt 0:0:12]} 6. a4 {[%emt 0:0:3]
} 0-0 {[%emt 0:0:12]} 7. 0-0 {[%emt 0:0:3]} d6 {[%emt 0:0:33]
} 8. Bg5 {[%emt 0:0:2]} h6 {[%emt 0:0:11]} 9. Bh4 {[%emt 0:0:1]} g5 {[%emt 0:1:56]
} 10. Nxg5 {[%emt 0:0:2]} hxg5 {[%emt 0:0:3]} 11. Bxg5 {[%emt 0:0:1]
} Kg7 {[%emt 0:0:39]} 12. Qf3 {[%emt 0:0:1]} Rh8 {[%emt 0:0:0]} 13. Nd2 {[%emt 0:1:17]} Kg6 {[%emt 0:1:25]} 14. h4 {[%emt 0:0:33]} Bg4 {[%emt 0:2:31]} 15. Qg3 {[%emt 0:7:31]} Qd7 {[%emt 0:0:11]} 16. d4 {[%emt 0:0:0]} Nh5 {[%emt 0:2:12]} 17. Qd3 {[%emt 0:0:1]} exd4 {[%emt 0:0:52]} 18. cxd4 {[%emt 0:0:3]} Bxd4 {[%emt 0:1:32]} 19. Bd5 {[%emt 0:0:3]} Ba7 {[%emt 0:1:7]
} 20. Be3 {[%emt 0:1:45]} Ne5 {[%emt 0:0:22]} 21. Qc3 {[%emt 0:0:0]} c6 {[%emt 0:1:12]} 22. Ba2 {[%emt 0:0:2]} Bxe3 {[%emt 0:0:49]} 23. Qxe3 {[%emt 0:0:1]} Qe7 {[%emt 0:0:10]} 24. f4 {[%emt 0:0:26]} Nd7 {[%emt 0:0:45]
} 25. Qf2 {[%emt 0:1:56]} Kh6 {[%emt 0:0:2]} 26. Nc4 {[%emt 0:0:0]} Rag8 {[%emt 0:0:21]} 27. e5 {[%emt 0:0:55]} Bh3 {[%emt 0:0:12]} 28. Nxd6 {[%emt 0:0:15]} Rh7 {[%emt 0:0:17]} 29. Kh2 {[%emt 0:0:20]} Be6 {[%emt 0:0:9]
} 30. f5 {[%emt 0:0:13]} Bxa2 {[%emt 0:0:9]} 31. Qe3+ {[%emt 0:0:1]
} Kg7 {[%emt 0:0:2]} 32. f6+ {[%emt 0:0:1]} Ndxf6 {[%emt 0:0:0]} 33. exf6+ {[%emt 0:0:1]} Nxf6 {[%emt 0:0:18]} 34. Qxe7 {[%emt 0:0:0]} 1-0

[Event "FIDE World Rapid-ch Open 2018"]
[White "Sokolin, Leonid"]
[Black "Tomashevsky, Evgeny"]
[Site "St. Petersburg"]
[Round "2.46"]
[Annotator "ChessBase"]
[Result "0-1"]
[Date "2018.12.26"]
[WhiteElo "2508"]
[BlackElo "2705"]
[PlyCount "74"]
[TimeControl "900+10"]

1. e4 {[%emt 0:0:0]} e5 {[%emt 0:0:0]} 2. Nf3 {[%emt 0:0:0]} Nc6 {[%emt 0:0:0]
} 3. Bb5 {[%emt 0:0:0]} a6 {[%emt 0:0:0]} 4. Bxc6 {[%emt 0:0:0]} dxc6 {[%emt 0:0:0]} 5. 0-0 {[%emt 0:0:0]} Bd6 {[%emt 0:0:14]} 6. d4 {[%emt 0:0:0]} exd4 {[%emt 0:0:15]} 7. Qxd4 {[%emt 0:0:0]} f6 {[%emt 0:0:0]} 8. Nc3 {[%emt 0:0:20]} Ne7 {[%emt 0:1:12]} 9. h3 {[%emt 0:1:24]} Ng6 {[%emt 0:0:41]} 10. Be3 {[%emt 0:0:24]} Qe7 {[%emt 0:0:22]} 11. Qd2 {[%emt 0:1:3]
} 0-0 {[%emt 0:1:9]} 12. Nd4 {[%emt 0:0:20]} Bd7 {[%emt 0:0:0]} 13. Rae1 {[%emt 0:0:28]} Rad8 {[%emt 0:1:36]} 14. Qe2 {[%emt 0:2:16]} Bc8 {[%emt 0:1:13]} 15. Qc4+ {[%emt 0:1:24]} Qf7 {[%emt 0:0:21]} 16. Qxf7+ {[%emt 0:0:15]
} Kxf7 {[%emt 0:0:2]} 17. Rd1 {[%emt 0:0:41]} Rfe8 {[%emt 0:0:0]} 18. f4 {[%emt 0:0:32]} Bf8 {[%emt 0:3:26]} 19. Kf2 {[%emt 0:0:37]} c5 {[%emt 0:1:10]} 20. Nde2 {[%emt 0:0:37]} b5 {[%emt 0:0:21]} 21. Ng3 {[%emt 0:1:56]
} Bb7 {[%emt 0:0:16]} 22. f5 {[%emt 0:0:26]} Ne5 {[%emt 0:0:0]} 23. b3 {[%emt 0:0:0]} Bd6 {[%emt 0:1:43]} 24. Nd5 {[%emt 0:0:15]} Bxd5 {[%emt 0:0:50]} 25. Rxd5 {[%emt 0:0:4]} Nc6 {[%emt 0:0:34]} 26. Rfd1 {[%emt 0:3:55]
} Nb4 {[%emt 0:0:13]} 27. R5d2 {[%emt 0:0:10]} Nxc2 {[%emt 0:0:0]} 28. Ne2 {[%emt 0:1:13]} Nxe3 {[%emt 0:0:24]} 29. Kxe3 {[%emt 0:0:1]
} g5 {[%emt 0:0:2]} 30. fxg6+ {[%emt 0:0:9]} hxg6 {[%emt 0:0:3]} 31. Kf3 {[%emt 0:0:10]} Re5 {[%emt 0:0:13]} 32. Ng3 {[%emt 0:0:48]} Rde8 {[%emt 0:0:0]} 33. Rc2 {[%emt 0:0:22]} R5e6 {[%emt 0:0:40]} 34. Rd3 {[%emt 0:0:3]} Rh8 {[%emt 0:0:11]} 35. Nf1 {[%emt 0:0:15]} Rh4 36. Nd2 f5 {[%emt 0:0:22]} 37. exf5 {[%emt 0:0:2]} Rf4+ {[%emt 0:0:2]} 0-1

[Event "FIDE World Rapid-ch Open 2018"]
[White "Zhigalko, Sergei"]
[Black "Khusnutdinov, Rustam"]
[Site "St. Petersburg"]
[Round "2.48"]
[Annotator "ChessBase"]
[Result "0-1"]
[Date "2018.12.26"]
[WhiteElo "2604"]
[BlackElo "2470"]
[PlyCount "132"]
[TimeControl "900+10"]

1. e4 {[%emt 0:0:0]} Nc6 {[%emt 0:0:8]} 2. Nf3 {[%emt 0:0:0]} d6 {[%emt 0:0:2]
} 3. d4 {[%emt 0:0:0]} Nf6 {[%emt 0:0:2]} 4. Nc3 {[%emt 0:0:0]} g6 {[%emt 0:0:5]} 5. d5 {[%emt 0:0:6]} Nb8 {[%emt 0:0:2]} 6. h3 {[%emt 0:0:7]
} Bg7 {[%emt 0:0:1]} 7. Bc4 {[%emt 0:0:3]} 0-0 {[%emt 0:0:0]} 8. 0-0 {[%emt 0:0:6]} c6 {[%emt 0:0:49]} 9. a4 {[%emt 0:0:7]} b6 {[%emt 0:0:26]
} 10. Re1 {[%emt 0:0:11]} Bb7 {[%emt 0:0:3]} 11. Bg5 {[%emt 0:0:0]} Nbd7 {[%emt 0:0:10]} 12. Qd2 {[%emt 0:4:2]} Rc8 {[%emt 0:0:4]} 13. b3 {[%emt 0:0:58]} a6 {[%emt 0:6:6]} 14. Rad1 {[%emt 0:1:38]} cxd5 {[%emt 0:1:30]
} 15. exd5 {[%emt 0:0:2]} b5 {[%emt 0:0:13]} 16. axb5 {[%emt 0:0:13]
} Nb6 {[%emt 0:0:1]} 17. Nd4 {[%emt 0:3:36]} axb5 {[%emt 0:0:0]} 18. Bxb5 {[%emt 0:0:5]} Nbxd5 {[%emt 0:0:6]} 19. Nxd5 {[%emt 0:0:7]} Bxd5 {[%emt 0:1:7]} 20. c4 {[%emt 0:1:12]} Ba8 {[%emt 0:0:19]} 21. Qe3 {[%emt 0:0:24]
} Rc5 {[%emt 0:0:27]} 22. f4 {[%emt 0:3:32]} e6 {[%emt 0:3:38]
} 23. b4 {[%emt 0:0:19]} Rc7 {[%emt 0:0:2]} 24. Nxe6 {[%emt 0:0:54]} fxe6 {[%emt 0:0:2]
} 25. Qxe6+ {[%emt 0:0:1]} Kh8 {[%emt 0:0:36]} 26. Rxd6 {[%emt 0:0:2]
} Qb8 {[%emt 0:0:1]} 27. Kh2 {[%emt 0:0:41]} Qb7 {[%emt 0:0:0]} 28. Re2 {[%emt 0:0:2]} Ne4 {[%emt 0:0:13]} 29. Rb6 {[%emt 0:0:14]} Nxg5 {[%emt 0:0:2]} 30. fxg5 {[%emt 0:0:6]} Qa7 {[%emt 0:0:10]} 31. c5 {[%emt 0:0:11]
} Rcf7 {[%emt 0:0:35]} 32. Bc4 {[%emt 0:0:14]} Rf4 {[%emt 0:0:0]} 33. Bd5 {[%emt 0:0:9]} R4f5 {[%emt 0:0:35]} 34. Bxa8 {[%emt 0:0:7]} Qxa8 {[%emt 0:0:1]} 35. h4 {[%emt 0:0:18]} Rf4 {[%emt 0:0:20]} 36. Kh3 {[%emt 0:0:9]
} Qa1 {[%emt 0:0:1]} 37. Re1 {[%emt 0:0:10]} Qd4 {[%emt 0:0:0]} 38. g3 {[%emt 0:0:3]} Rf2 {[%emt 0:0:5]} 39. Re2 {[%emt 0:0:15]} Rf1 {[%emt 0:0:9]} 40. Qe4 {[%emt 0:0:6]} Qc3 {[%emt 0:1:3]} 41. Re6 {[%emt 0:0:14]
} R1f3 {[%emt 0:0:2]} 42. Rg2 {[%emt 0:0:13]} R3f4 {[%emt 0:0:0]} 43. Qe3 {[%emt 0:0:11]} Qxe3 {[%emt 0:0:4]} 44. Rxe3 {[%emt 0:0:1]
} Rxb4 {[%emt 0:0:1]} 45. Rc2 {[%emt 0:0:4]} Rb7 {[%emt 0:0:9]} 46. c6 Rc7 47. Re6 {[%emt 0:0:15]} Kg8 {[%emt 0:0:5]} 48. Rd6 {[%emt 0:0:7]} Rfc8 {[%emt 0:0:2]} 49. Kg4 {[%emt 0:0:7]} Bf8 {[%emt 0:0:33]} 50. Re6 {[%emt 0:0:7]
} Rd8 {[%emt 0:0:3]} 51. Rc4 {[%emt 0:0:6]} Rd6 {[%emt 0:0:0]} 52. Rxd6 {[%emt 0:0:42]} Bxd6 {[%emt 0:0:1]} 53. Rc2 {[%emt 0:0:11]} Kf7 {[%emt 0:0:1]} 54. h5 {[%emt 0:0:4]} Ke6 {[%emt 0:0:1]} 55. Rf2 {[%emt 0:0:17]
} Be5 {[%emt 0:0:2]} 56. Rc2 {[%emt 0:0:9]} Kd5 {[%emt 0:0:0]} 57. hxg6 {[%emt 0:0:10]} hxg6 {[%emt 0:0:0]} 58. Rd2+ {[%emt 0:0:1]} Bd4 {[%emt 0:0:11]} 59. Re2 {[%emt 0:0:2]} Rxc6 {[%emt 0:0:1]} 60. Re8 {[%emt 0:0:1]
} Be5 {[%emt 0:0:4]} 61. Rd8+ {[%emt 0:0:2]} Ke4 {[%emt 0:0:0]} 62. Rg8 {[%emt 0:0:5]} Rd6 {[%emt 0:0:18]} 63. Re8 {[%emt 0:0:3]} Rd3 {[%emt 0:0:56]} 64. Re6 {[%emt 0:0:1]} Rxg3+ {[%emt 0:0:4]} 65. Kh4 {[%emt 0:0:2]
} Rg1 {[%emt 0:0:1]} 66. Rxg6 {[%emt 0:0:43]} Kf5 {[%emt 0:0:0]} 0-1

[Event "FIDE World Rapid-ch Open 2018"]
[White "Jobava, Baadur"]
[Black "Kryakvin, Dmitry"]
[Site "St. Petersburg"]
[Round "2.49"]
[Annotator "ChessBase"]
[Result "1-0"]
[Date "2018.12.26"]
[WhiteElo "2627"]
[BlackElo "2588"]
[PlyCount "127"]
[TimeControl "900+10"]

1. d4 {[%emt 0:0:0]} d5 {[%emt 0:0:0]} 2. c4 {[%emt 0:0:0]} c6 {[%emt 0:0:0]} 3. Nc3 {[%emt 0:0:0]} Nf6 {[%emt 0:0:3]} 4. Nf3 {[%emt 0:0:0]} dxc4 {[%emt 0:0:3]} 5. a4 {[%emt 0:0:0]} a5 {[%emt 0:0:4]} 6. e4 {[%emt 0:0:41]
} Bg4 {[%emt 0:0:16]} 7. Bxc4 {[%emt 0:0:51]} e6 {[%emt 0:0:0]} 8. Be2 {[%emt 0:1:14]} Bb4 {[%emt 0:0:15]} 9. 0-0 {[%emt 0:0:2]} Nbd7 {[%emt 0:1:33]} 10. h3 {[%emt 0:1:45]} Bh5 {[%emt 0:0:12]} 11. Ne5 {[%emt 0:0:0]} Bxe2 {[%emt 0:0:57]} 12. Qxe2 {[%emt 0:0:1]} 0-0 {[%emt 0:0:19]} 13. Nd3 {[%emt 0:0:32]} Be7 {[%emt 0:2:26]} 14. Rd1 {[%emt 0:0:9]} Re8 {[%emt 0:0:17]
} 15. Be3 {[%emt 0:0:9]} Nf8 {[%emt 0:1:18]} 16. Rac1 {[%emt 0:0:19]
} Rc8 {[%emt 0:0:5]} 17. g3 {[%emt 0:0:8]} Bb4 {[%emt 0:0:0]} 18. f3 {[%emt 0:0:7]} Ng6 {[%emt 0:0:55]} 19. Kg2 {[%emt 0:0:8]} Qe7 {[%emt 0:0:17]} 20. Na2 {[%emt 0:0:10]} Nd7 {[%emt 0:2:9]} 21. Naxb4 {[%emt 0:0:5]
} axb4 {[%emt 0:0:0]} 22. b3 {[%emt 0:3:12]} f5 {[%emt 0:0:0]} 23. Bd2 {[%emt 0:4:33]} fxe4 {[%emt 0:0:13]} 24. fxe4 {[%emt 0:0:2]} e5 {[%emt 0:0:22]} 25. Bxb4 {[%emt 0:0:7]} Qe6 {[%emt 0:0:44]} 26. Nc5 {[%emt 0:2:9]
} Nxc5 {[%emt 0:0:13]} 27. dxc5 {[%emt 0:0:2]} Qxb3 {[%emt 0:0:0]} 28. Rb1 {[%emt 0:0:3]} Qf7 {[%emt 0:0:38]} 29. Bc3 {[%emt 0:0:31]} Rc7 {[%emt 0:0:32]} 30. a5 {[%emt 0:0:11]} Nf8 {[%emt 0:0:44]} 31. Rf1 {[%emt 0:0:12]
} Qe6 {[%emt 0:0:11]} 32. Rf5 {[%emt 0:0:18]} Nd7 {[%emt 0:0:0]} 33. Rbf1 {[%emt 0:0:2]} Rf8 {[%emt 0:1:23]} 34. Rxf8+ {[%emt 0:0:36]} Nxf8 {[%emt 0:0:1]} 35. Qf3 {[%emt 0:0:14]} Rf7 {[%emt 0:0:28]} 36. Qxf7+ {[%emt 0:0:5]
} Qxf7 {[%emt 0:0:1]} 37. Rxf7 {[%emt 0:0:1]} Kxf7 {[%emt 0:0:0]} 38. Bxe5 {[%emt 0:0:1]} Ne6 {[%emt 0:0:1]} 39. Bd6 {[%emt 0:0:2]} Nd4 {[%emt 0:0:6]} 40. Bc7 {[%emt 0:0:7]} Nb3 {[%emt 0:0:8]} 41. Bd6 {[%emt 0:0:31]
} Nxa5 {[%emt 0:0:15]} 42. Kf3 {[%emt 0:0:0]} Nc4 {[%emt 0:0:0]} 43. Bc7 {[%emt 0:0:7]} Kf6 {[%emt 0:0:27]} 44. h4 {[%emt 0:0:5]} Nb2 {[%emt 0:0:53]} 45. Ke3 {[%emt 0:0:4]} Ke6 {[%emt 0:0:12]} 46. Kd4 {[%emt 0:0:11]
} Nd1 {[%emt 0:0:6]} 47. g4 {[%emt 0:0:19]} Nf2 {[%emt 0:0:0]} 48. g5 {[%emt 0:0:1]} h5 {[%emt 0:0:22]} 49. gxh6 {[%emt 0:0:5]} gxh6 {[%emt 0:0:1]} 50. h5 {[%emt 0:0:10]} Ng4 {[%emt 0:0:8]} 51. e5 {[%emt 0:0:0]} Kf5 {[%emt 0:0:2]} 52. Bd6 {[%emt 0:0:7]} Nf2 {[%emt 0:0:22]} 53. Bf8 {[%emt 0:0:1]} Ng4 {[%emt 0:0:28]} 54. Bg7 {[%emt 0:0:2]} Ke6 {[%emt 0:0:7]
} 55. Ke4 Kf7 56. Kf4 {[%emt 0:0:8]} Nf2 {[%emt 0:0:4]} 57. Bxh6 {[%emt 0:0:1]} Nd3+ {[%emt 0:0:2]} 58. Kf5 {[%emt 0:0:1]} Nxc5 {[%emt 0:0:0]
} 59. Bg5 {[%emt 0:0:17]} Ne6 {[%emt 0:0:15]} 60. h6 {[%emt 0:0:0]} Nf8 {[%emt 0:0:13]} 61. Bf6 {[%emt 0:0:2]} Nh7 {[%emt 0:0:53]} 62. e6+ {[%emt 0:0:5]} Ke8 {[%emt 0:0:16]} 63. Bd4 {[%emt 0:0:20]} b5 {[%emt 0:0:0]} 64. Bc5 {[%emt 0:0:1]} 1-0

[Event "FIDE World Rapid-ch Open 2018"]
[White "Anton Guijarro, David"]
[Black "Mikhalevski, Victor"]
[Site "St. Petersburg"]
[Round "2.50"]
[Annotator "ChessBase"]
[Result "1-0"]
[Date "2018.12.26"]
[WhiteElo "2642"]
[BlackElo "2579"]
[PlyCount "135"]
[TimeControl "900+10"]

1. e4 {[%emt 0:0:0]} e5 {[%emt 0:0:0]} 2. Nf3 {[%emt 0:0:0]} Nc6 {[%emt 0:0:0]
} 3. Bc4 {[%emt 0:0:0]} Bc5 {[%emt 0:0:0]} 4. c3 {[%emt 0:0:0]} Nf6 {[%emt 0:0:0]} 5. d4 {[%emt 0:0:2]} exd4 {[%emt 0:0:2]} 6. e5 {[%emt 0:0:2]
} d5 {[%emt 0:0:3]} 7. Bb5 {[%emt 0:0:2]} Ne4 {[%emt 0:0:2]
} 8. cxd4 {[%emt 0:0:2]} Bb6 {[%emt 0:0:3]} 9. Nc3 {[%emt 0:0:3]} 0-0 {[%emt 0:0:6]
} 10. Be3 {[%emt 0:0:3]} Be6 {[%emt 0:0:44]} 11. 0-0 {[%emt 0:0:0]} f6 {[%emt 0:0:7]} 12. exf6 {[%emt 0:1:1]} Qxf6 {[%emt 0:0:15]} 13. Bxc6 {[%emt 0:2:3]} bxc6 {[%emt 0:0:22]} 14. Qa4 {[%emt 0:0:25]} c5 {[%emt 0:6:42]
} 15. dxc5 {[%emt 0:1:15]} Nxc5 {[%emt 0:0:2]} 16. Qc6 {[%emt 0:0:52]
} Bf7 {[%emt 0:1:17]} 17. Nxd5 {[%emt 0:3:18]} Qxc6 {[%emt 0:0:0]} 18. Ne7+ Kh8 19. Nxc6 {[%emt 0:0:3]} Na4 {[%emt 0:0:16]} 20. b3 {[%emt 0:0:28]
} Nc3 {[%emt 0:0:13]} 21. Rfe1 {[%emt 0:0:7]} a5 {[%emt 0:0:0]} 22. Bd4 {[%emt 0:0:41]} Bxd4 {[%emt 0:1:27]} 23. Nfxd4 {[%emt 0:0:47]} a4 {[%emt 0:0:2]} 24. Rec1 {[%emt 0:0:19]} Nd5 {[%emt 0:0:19]} 25. Ne5 {[%emt 0:0:29]
} Bg8 {[%emt 0:0:4]} 26. g3 {[%emt 0:0:37]} c5 {[%emt 0:0:23]
} 27. Rxc5 {[%emt 0:0:33]} axb3 {[%emt 0:0:2]} 28. Nxb3 {[%emt 0:0:4]} Nb4 {[%emt 0:0:56]} 29. Nd4 {[%emt 0:0:32]} Rxa2 {[%emt 0:0:25]} 30. Rxa2 {[%emt 0:0:8]
} Nxa2 {[%emt 0:0:4]} 31. f4 {[%emt 0:1:0]} Nb4 {[%emt 0:0:0]} 32. Rc7 {[%emt 0:0:53]} Nd5 {[%emt 0:0:19]} 33. Ra7 {[%emt 0:0:5]} Rb8 {[%emt 0:1:27]} 34. Nf5 {[%emt 0:0:22]} g6 {[%emt 0:0:47]} 35. Nh6 {[%emt 0:0:0]} Rb1+ {[%emt 0:0:16]} 36. Kf2 {[%emt 0:0:27]} Rb2+ {[%emt 0:0:1]} 37. Kf3 {[%emt 0:0:7]} Be6 {[%emt 0:2:16]} 38. Nhf7+ {[%emt 0:0:9]} Bxf7 {[%emt 0:0:7]
} 39. Nxf7+ {[%emt 0:0:3]} Kg8 {[%emt 0:0:2]} 40. Nh6+ {[%emt 0:0:12]
} Kh8 {[%emt 0:0:2]} 41. Ng4 {[%emt 0:0:8]} Rb6 {[%emt 0:0:0]} 42. Ra3 {[%emt 0:1:15]} Rc6 {[%emt 0:0:12]} 43. Ra8+ {[%emt 0:0:12]} Kg7 {[%emt 0:0:2]} 44. Ra5 {[%emt 0:0:12]} Rc3+ {[%emt 0:0:10]} 45. Ke2 {[%emt 0:0:18]
} Ne7 {[%emt 0:0:34]} 46. Ra7 {[%emt 0:0:11]} Kf8 {[%emt 0:0:0]} 47. Ne3 {[%emt 0:0:24]} Rb3 {[%emt 0:0:4]} 48. h3 {[%emt 0:0:19]} h5 {[%emt 0:0:2]
} 49. Ra6 {[%emt 0:0:16]} Kf7 {[%emt 0:0:11]} 50. g4 {[%emt 0:0:0]} hxg4 {[%emt 0:0:5]} 51. hxg4 {[%emt 0:0:1]} Rb5 {[%emt 0:0:19]} 52. Nc4 {[%emt 0:0:34]} Rb4 {[%emt 0:0:34]} 53. Ne5+ {[%emt 0:0:10]} Kf8 {[%emt 0:0:7]
} 54. Kf3 {[%emt 0:0:26]} Rb3+ {[%emt 0:0:3]} 55. Kf2 {[%emt 0:0:2]
} Kg7 {[%emt 0:0:16]} 56. Ra7 {[%emt 0:0:5]} Kf8 {[%emt 0:0:0]} 57. Ra6 {[%emt 0:0:22]} Kg7 {[%emt 0:0:3]} 58. Re6 {[%emt 0:0:5]} Kf8 {[%emt 0:0:10]} 59. Nxg6+ {[%emt 0:0:8]} Kf7 {[%emt 0:0:10]} 60. Rxe7+ {[%emt 0:0:3]
} Kxg6 {[%emt 0:0:1]} 61. Re6+ {[%emt 0:0:1]} Kf7 {[%emt 0:0:0]} 62. Re3 {[%emt 0:0:2]} Rb1 {[%emt 0:0:3]} 63. Kf3 {[%emt 0:0:2]} Rf1+ {[%emt 0:0:2]} 64. Ke4 {[%emt 0:0:1]} Ke6 {[%emt 0:0:3]} 65. g5 {[%emt 0:0:10]
} Rf2 {[%emt 0:0:3]} 66. Ra3 {[%emt 0:0:5]} Re2+ {[%emt 0:0:0]} 67. Kf3 {[%emt 0:0:1]} Rb2 {[%emt 0:0:2]} 68. Ra6+ {[%emt 0:0:2]} 1-0